Cogmind - Beta 10.2 @@@ ROGUE MODE // 2022.02.28 @ 23:05:50 Player: W_W Result: Destroyed by S-27 Virus with Autogun Performance ------------- Evolutions (3) 1500 Regions Visited (9) 1800 Robots Destroyed (225) 1125 Value Destroyed (5319) 5319 Prototype IDs (6) 120 Alien Tech Used (0) 0 Bonus (491) 491 TOTAL SCORE: 10355 Bonus ------- High Alert Combat Kills 435 Follower Combat Kills 308 Friendly Fire -252 Cogmind --------- Core Integrity 0/700 Matter 184/300 Energy 196/280 System Corruption 2% Temperature Cool (0) Movement Core (350) Ox6 Location -7/Storage Parts ------- > --- POWER (1) -------- Heavy Ion Engine > --- PROPULSION (4) --- Cesium-ion Thruster Cesium-ion Thruster Xenon Bombardment Thruster Cooled VTOL Module > --- UTILITY (4) ------ Weight Redist. System Advanced Weight Redist. System Long-range Sensor Array Insulated Plating > --- WEAPON (4) ------- Flak Gun Great Axe > --- INVENTORY (4) ---- Hardened Medium Armor Plating Hardened Medium Armor Plating Mini Grenade Launcher Mini Grenade Launcher Peak State ------------ > --- POWER ------------ Heavy Ion Engine > --- PROPULSION ------- Armored Treads Cesium-ion Thruster Xenon Bombardment Thruster Cooled VTOL Module > --- UTILITY ---------- High-capacity Storage Unit High-capacity Storage Unit High-capacity Storage Unit Hardened Medium Armor Plating > --- WEAPON ----------- Shock Rifle Pulse Rifle Flak Gun Spear > --- INVENTORY -------- Heavy Ion Engine Deuterium Engine Improved Deuterium Engine Improved Deuterium Engine Armored Treads Armored Treads Armored Treads Coolant Injector High-capacity Matter Pod High-capacity Matter Pod Weight Redist. System Advanced Weight Redist. System Long-range Sensor Array Long-range Sensor Array Improved Utility Shielding Hardened Medium Armor Plating Insulated Plating System Backup Module Recalibrator Improved EM Pulse Cannon Plasma Cannon Mini Grenade Launcher Mini Grenade Launcher Datajack Great Axe [Rating: 45] Favorites ----------- Power Nuclear Core Engine Light Ion Engine Power Core Nuclear Core Propulsion Light Treads Treads Light Treads Flight Unit Cesium-ion Thruster Utility High-capacity Storage Unit Device Advanced Weight Redist. System Storage High-capacity Storage Unit Protection Light Armor Plating Weapon Assault Cannon Energy Gun Medium Laser Energy Cannon Plasma Cannon Ballistic Gun Assault Rifle Ballistic Cannon Assault Cannon Launcher Mini Grenade Launcher Impact Weapon Hammer Slashing Weapon Great Axe Piercing Weapon Spear Build | -11 -10 -10 -9 -9 -9 -8 -8 -7 -7 ------- Run | Scr Mat Min Mat Min Exi Min Mat Fac Sto Slots Evolved 6 | . . . 2 . . . 2 2 . Power . | . . . . . . . . . . Propulsion 2 | . . . . . . . . 2 . Utility 2 | . . . 2 . . . . . . Weapon 2 | . . . . . . . 2 . . Parts Attached 116 | 7 9 3 18 . 1 1 32 23 22 Power 9 | 1 . 1 3 . . . 2 1 1 Engine 7 | 1 . 1 1 . . . 2 1 1 Core 2 | . . . 2 . . . . . . Reactor . | . . . . . . . . . . Propulsion 42 | 2 2 . 5 . . 1 10 12 10 Treads 36 | 2 2 . 5 . . 1 9 11 6 Leg . | . . . . . . . . . . Wheel . | . . . . . . . . . . Hover . | . . . . . . . . . . Flight 6 | . . . . . . . 1 1 4 Utility 23 | 2 3 . 6 . 1 . 4 2 5 Device 3 | . . . . . . . . . 3 Storage 8 | 2 3 . 2 . 1 . . . . Processor . | . . . . . . . . . . Hackware . | . . . . . . . . . . Protection 12 | . . . 4 . . . 4 2 2 Artifact . | . . . . . . . . . . Weapon 42 | 2 4 2 4 . . . 16 8 6 Energy Gun 3 | 1 . . . . . . . . 2 Energy Cannon 3 | . . . . . . . 1 1 1 Ballistic Gun 6 | 1 2 . 1 . . . 1 . 1 Ballistic Cannon 17 | . . . 1 . . . 11 5 . Launcher 10 | . 2 1 2 . . . 3 2 . Special Weapon . | . . . . . . . . . . Impact Weapon 1 | . . 1 . . . . . . . Slashing Weapon 1 | . . . . . . . . . 1 Piercing Weapon 1 | . . . . . . . . . 1 Special Melee Weapon . | . . . . . . . . . . Unidentified Prototypes 4 | . . . 1 . . . 2 1 . Parts Lost 27 | . 1 2 3 . . . 3 14 4 Power 2 | . . 1 . . . . 1 . . Propulsion 5 | . . . . . . . . 5 . Utility 4 | . . . 2 . . . 1 1 . Weapon 16 | . 1 1 1 . . . 1 8 4 Highest Loss Streak 6 | . 1 1 2 . . . 1 6 2 Average Slot Usage (%) 98 | . 100 99 95 100 100 100 99 89 94 Engine 6 | . 14 13 3 . . . 8 7 7 Core 3 | . . . 7 11 11 11 . . . Treads 22 | . 28 28 21 22 22 22 18 25 22 Storage 29 | . 28 28 35 33 33 33 27 23 17 Protection 6 | . . . 5 11 11 11 8 5 6 Energy Gun 1 | . 6 . . . . . . . 8 Ballistic Gun 5 | . 16 14 7 . . . . . 2 Ballistic Cannon 11 | . . . 3 11 11 11 26 19 7 Launcher 8 | . 4 12 9 11 11 11 8 5 . Naked Turns . | . . . . . . . . . . Heaviest Build 133 | 12 72 74 111 111 111 111 131 133 133 Greatest Support 82 | 40 40 40 40 40 40 40 42 82 80 Greatest Overweight (x) 6 | 3 1 1 2 2 2 2 3 6 2 Average Overweight (x) 1 | . . 1 1 2 2 2 2 1 . Largest Inventory Capacity 28 | 6 20 20 28 28 28 28 28 28 28 Average Capacity 24 | 5 18 20 25 28 28 28 28 28 22 Most Carried 28 | 6 20 20 28 28 28 28 28 28 28 Average Carried 24 | 2 16 19 25 28 27 27 27 27 20 Final Capacity 28 | 6 20 20 28 28 28 28 28 28 4 Final Carried 28 | 6 20 20 28 28 28 28 28 24 4 Class Distribution -------------------- 69% | Hauler-Mutant 23% | Hauler-Tank 5% | Mutant Dominant Class ---------------- Hauler-Mutant | -10/Materials Hauler-Mutant | -10/Mines Hauler-Mutant | -9/Materials Hauler-Mutant | -9/Mines Hauler-Mutant | -9/Exiles Hauler-Mutant | -8/Mines Hauler-Tank | -8/Materials Hauler-Tank | -7/Factory Hauler-Tank | -7/Storage Resources | -11 -10 -10 -9 -9 -9 -8 -8 -7 -7 ----------- Run | Scr Mat Min Mat Min Exi Min Mat Fac Sto Matter Collected 5015 | 414 473 209 550 16 288 94 1596 1117 258 Remotely . | . . . . . . . . . . Salvage Created 5809 | 401 761 207 875 21 35 158 1726 1413 212 Parts 389 | 26 50 15 76 8 . 18 86 104 6 Haulers Intercepted 6 | . 2 . . . . . 3 1 . Recyclers Shooed 15 | 1 4 2 1 . . . 2 4 1 Parts Field Recycled . | . . . . . . . . . . Retrieved Matter . | . . . . . . . . . . Parts Self-Destructed . | . . . . . . . . . . Prevented . | . . . . . . . . . . Kills | -11 -10 -10 -9 -9 -9 -8 -8 -7 -7 ------- Run | Scr Mat Min Mat Min Exi Min Mat Fac Sto Combat Hostiles Destroyed 130 | . 10 15 28 6 . 7 28 32 4 Melee 3 | . . . . . . . 1 1 1 Guns 12 | . 7 1 2 . . . . . 2 Cannons 48 | . . . 2 2 . 1 25 17 1 AOE 66 | . 3 14 24 4 . 6 2 13 . Classes Destroyed 15 | 3 5 2 2 . . . 2 1 . Worker 23 | 4 4 . 3 . . . 5 7 . Builder 20 | . . 1 7 . . 1 2 9 . Tunneler 13 | 9 . 2 1 . . 1 . . . Hauler 6 | . 2 . . . . . 3 1 . Recycler 21 | 1 3 . 2 . . 1 7 6 1 Operator 5 | . 1 . 1 . . . 3 . . Watcher 10 | . 3 . 2 . . . 4 1 . Swarmer 43 | . 3 9 9 6 . 7 . 8 1 Grunt 56 | . 7 3 11 . . . 18 17 . Brawler 1 | . . . 1 . . . . . . Duelist 3 | . . . . . . . 1 2 . Sentry 20 | . . . 7 . . . 8 3 2 Hunter 1 | . . . . . . . 1 . . Programmer 3 | . . . . . . . . 2 1 Assembled 4 | . . 4 . . . . . . . Best Kill Streak 19 | 6 4 6 8 4 . 4 6 19 1 Combat Bots Only 7 | . 3 6 6 4 . 4 5 7 1 Max Kills in Single Turn 8 | 2 2 5 5 2 . 4 2 8 1 Gunslinging . | . . . . . . . . . . Exploded 5 | . 2 5 5 1 . 3 1 4 . Melee 1 | . . . . . . . 1 1 1 Uniques/NPCs Destroyed . | . . . . . . . . . . Combat | -11 -10 -10 -9 -9 -9 -8 -8 -7 -7 -------- Run | Scr Mat Min Mat Min Exi Min Mat Fac Sto Damage Taken 7093 | . 389 519 772 221 . 177 1334 3045 636 Core 1186 | . 85 89 103 12 . 13 177 670 37 Absorbed by Shields . | . . . . . . . . . . Core Remaining (%) 66 | 100 . 30 . . . 68 67 . . Volleys Fired 367 | 33 65 15 42 6 2 6 99 78 21 Largest 4 | 2 2 2 2 2 2 2 4 4 4 Hottest 231 | 70 70 50 69 69 69 69 162 176 231 Shots Fired 791 | 66 122 28 79 12 4 11 271 147 51 Gun 258 | 66 117 13 34 . . . . . 28 Cannon 434 | . . . 8 6 2 6 266 123 23 Launcher 99 | . 5 15 37 6 2 5 5 24 . Special . | . . . . . . . . . . Kinetic 563 | 33 66 13 42 6 2 6 266 107 22 Thermal 106 | 33 51 . . . . . . . 22 Explosive 99 | . 5 15 37 6 2 5 5 24 . Electromagnetic 23 | . . . . . . . . 16 7 Robot Hit Streak 27 | 20 27 9 11 4 4 3 8 10 15 Robot Miss Streak 6 | 4 2 2 3 2 1 4 6 6 6 Penetration Max . | . . . . . . . . . . Secondary Targets . | . . . . . . . . . . Shots Hit Robots 527 | 39 91 22 47 5 2 4 188 89 40 Core Hits 435 | 15 41 35 67 8 6 11 113 123 16 Critical Hits 5 | . . . 1 . . . 1 3 . Critical Kills 3 | . . . 1 . . . . 2 . Critical Parts Destroyed 2 | . . . . . . . 1 1 . Melee Attacks 10 | . . 4 . . . . . . 6 Impact 4 | . . 4 . . . . . . . Slashing 3 | . . . . . . . . . 3 Piercing 3 | . . . . . . . . . 3 Sneak Attacks 4 | . . 3 . . . . . . 1 Combat Hostiles . | . . . . . . . . . . Follow-up Attacks . | . . . . . . . . . . Damage Inflicted 18093 | 562 1399 1453 3390 424 303 593 3860 5173 936 Guns 2366 | 551 1137 85 250 . . . . . 343 Cannons 6156 | . . . 139 106 42 41 3332 2153 343 Explosions 8470 | . 206 1155 2835 318 261 464 239 2992 . Melee 454 | . . 204 . . . . . . 250 Ramming 647 | 11 56 9 166 . . 88 289 28 . Kinetic 6947 | 242 593 85 389 106 42 41 3332 1764 353 Thermal 1243 | 309 544 . . . . . . 131 259 Explosive 8306 | . 206 1155 2802 318 261 464 239 2861 . Electromagnetic 496 | . . . 33 . . . . 389 74 Impact 204 | . . 204 . . . . . . . Slashing 161 | . . . . . . . . . 161 Piercing 89 | . . . . . . . . . 89 Highest Corruption 2 | . . . 2 2 2 2 . 1 2 Average Corruption 1 | . . . 2 2 2 2 . 1 1 Corruption Purged . | . . . . . . . . . . Effects 41 | . . . 3 2 10 14 . 7 5 Message Errors 20 | . . . 3 1 5 6 . 2 3 Heat Flow Errors 4 | . . . . . 2 2 . . . Energy Discharges 5 | . . . . . 1 2 . 2 . Data Loss (minor) 9 | . . . . 1 2 4 . . 2 Targeting Errors 2 | . . . . . . . . 2 . Weapon Failures 1 | . . . . . . . . 1 . Overload Shots . | . . . . . . . . . . Overflow Damage 629 | . . 83 217 13 . 9 106 105 96 Projectiles 138 | . . . . . . 6 53 79 . Explosions 298 | . . 30 200 13 . 3 26 26 . Melee 193 | . . 53 17 . . . 27 . 96 Knockbacks 95 | . . . 1 . 1 1 63 28 1 Impact 3 | . . . . . . 1 2 . . Kinetic 85 | . . . 1 . 1 . 58 24 1 Secondary 7 | . . . . . . . 3 4 . Self-Inflicted Damage 586 | . 36 46 183 107 . 40 . 174 . Shots 23 | . 1 3 10 3 . 1 . 5 . Rammed 50 | 2 4 2 11 . . 7 21 3 . Targets Rammed 53 | 2 4 2 11 . . 8 22 4 . Kicked . | . . . . . . . . . . Crushed 3 | . . . . . . 1 1 1 . Highest Temperature 672 | 162 132 10 90 30 277 253 424 672 468 Average Temperature 120 | 57 29 4 26 17 104 85 99 256 191 Received Heat Transfer 2316 | . 165 78 216 . . . 558 1149 150 Effects 52 | . . . . . . . 6 38 8 Shutdowns 4 | . . . . . . . . 3 1 Energy Bleed 4 | . . . . . . . . 3 1 Interference 16 | . . . . . . . 5 9 2 Matter Decay 6 | . . . . . . . 1 5 . Short Circuit 4 | . . . . . . . . 3 1 Damage (minor) 3 | . . . . . . . . 3 . Damage (major) 12 | . . . . . . . . 9 3 Damage (core) 3 | . . . . . . . . 3 . Siege Activations . | . . . . . . . . . . Robots Corrupted 1 | . . . . . . . . 1 . Combat Hostiles 1 | . . . . . . . . 1 . Parts Fried 3 | . . 3 . . . . . . . Impact Corruptions 8 | . . 3 2 . . 1 1 1 . Robots Melted . | . . . . . . . . . . Combat Hostiles . | . . . . . . . . . . Parts Melted 3 | 2 . . . . . . . . 1 Heat Transferred 3186 | 925 1591 . . . . . . 150 520 Parts Sabotaged . | . . . . . . . . . . Parts Stolen . | . . . . . . . . . . Parts Stripped . | . . . . . . . . . . Power Chain Reactions 2 | . . . . . . . . 2 . Missiles Intercepted . | . . . . . . . . . . Alert | -11 -10 -10 -9 -9 -9 -8 -8 -7 -7 ------- Run | Scr Mat Min Mat Min Exi Min Mat Fac Sto Peak Influence 1040 | 70 225 166 573 408 . 267 383 1040 554 Initial 409 | . 45 10 55 223 . . . 65 409 Average 173 | 36 66 49 320 273 . 101 122 445 445 Maximum Alert Level 3 | . 1 . 2 2 . 1 1 3 2 Low Security (%) 69 | 100 96 100 24 . . 89 85 31 . Level 1 17 | . 3 . 49 80 . 10 14 1 24 Level 2 12 | . . . 26 19 . . . 52 75 Level 3 . | . . . . . . . . 14 . Level 4 . | . . . . . . . . . . Level 5 . | . . . . . . . . . . High Security . | . . . . . . . . . . Max Security . | . . . . . . . . . . Squads Dispatched 22 | . 2 . 4 . . . 4 11 1 Investigation 3 | . . . 1 . . . 1 1 . Extermination 3 | . . . . . . . . 2 1 Reinforcement 11 | . 2 . 3 . . . 2 4 . Assault 2 | . . . . . . . . 2 . Garrison 3 | . . . . . . . 1 2 . Intercept . | . . . . . . . . . . Construction Impeded 6 | . . . 2 . . . 1 3 . Haulers Reinforced 1 | . . . . . . . . 1 . Stealth | -11 -10 -10 -9 -9 -9 -8 -8 -7 -7 --------- Run | Scr Mat Min Mat Min Exi Min Mat Fac Sto Distress Signals 11 | . . . 3 . . . 5 2 1 Communications Jammed . | . . . . . . . . . . Distress Signals . | . . . . . . . . . . Times Spotted 217 | . 19 23 43 7 . 14 51 46 14 Peak Tracking Total 11 | . 3 11 6 4 . 4 5 10 8 Tactical Retreats 15 | . . . 4 1 . . 3 5 2 Traps | -11 -10 -10 -9 -9 -9 -8 -8 -7 -7 ------- Run | Scr Mat Min Mat Min Exi Min Mat Fac Sto Traps Triggered 3 | . . . 1 . . . 2 . . Indirectly . | . . . . . . . . . . Trap Hack Attempts . | . . . . . . . . . . Triggered . | . . . . . . . . . . Disarmed . | . . . . . . . . . . Reprogrammed . | . . . . . . . . . . Reused . | . . . . . . . . . . Traps Extracted . | . . . . . . . . . . Installed . | . . . . . . . . . . Triggered . | . . . . . . . . . . Machines | -11 -10 -10 -9 -9 -9 -8 -8 -7 -7 ---------- Run | Scr Mat Min Mat Min Exi Min Mat Fac Sto Machines Disabled 29 | . . 6 11 1 1 . 4 5 1 Max in Single Turn 3 | . . 2 3 1 1 . 1 3 1 Garrison Access 1 | . . . . . . . . 1 . Machines Sabotaged . | . . . . . . . . . . Garrisons Compromised . | . . . . . . . . . . Overloaded Fab Kills . | . . . . . . . . . . Fab Network Shutdowns . | . . . . . . . . . . Hacking | -11 -10 -10 -9 -9 -9 -8 -8 -7 -7 --------- Run | Scr Mat Min Mat Min Exi Min Mat Fac Sto Machines Accessed 48 | . 6 1 14 . 2 . 13 4 8 Terminals 29 | . 5 1 10 . . . 7 . 6 Fabricators 2 | . . . . . . . . 2 . Repair Stations 5 | . . . 2 . . . 1 1 1 Recycling Units 5 | . 1 . 1 . . . 2 . 1 Scanalyzers 3 | . . . 1 . . . 2 . . Garrison Access 2 | . . . . . . . 1 1 . Total Hacks 168 | . 20 2 55 . 32 . 34 8 17 Successful 111 | . 10 1 40 . 32 . 18 3 7 Failed 57 | . 10 1 15 . . . 16 5 10 Catastrophic 13 | . . . 2 . . . 5 2 4 Database Lockouts . | . . . . . . . . . . Manual 64 | . 18 . 27 . . . 10 2 7 Terminals 86 | . 17 2 37 . . . 17 . 13 Fabricators 3 | . . . . . . . . 3 . Repair Stations 17 | . . . 9 . . . 3 3 2 Recycling Units 11 | . 3 . 2 . . . 4 . 2 Scanalyzers 15 | . . . 7 . . . 8 . . Garrison Access 4 | . . . . . . . 2 2 . Terminal Hacks 55 | . 2 1 9 . 32 . 6 . 5 Record 34 | . . 1 . . 32 . . . 1 Part Schematic 1 | . 1 . . . . . . . . Prototype ID Bank 1 | . . . 1 . . . . . . Open Door 2 | . . . . . . . . . 2 Level Access Points 1 | . . . . . . . . . 1 Emergency Access Points 3 | . . . 2 . . . 1 . . Terminal Index 1 | . . . 1 . . . . . . Alert Level 1 | . . . . . . . 1 . . Unreport Threat 3 | . . . 1 . . . 2 . . Locate Traps 2 | . . . 1 . . . 1 . . Recall Reinforcements 1 | . . . 1 . . . . . . Hauler Manifests 1 | . . . 1 . . . . . . Registered Components 1 | . 1 . . . . . . . . Zone Layout 3 | . . . 1 . . . 1 . 1 Fabricator Hacks 1 | . . . . . . . . 1 . Build 1 | . . . . . . . . 1 . Repair Station Hacks 14 | . . . 9 . . . 2 2 1 Scan Component 8 | . . . 5 . . . 1 1 1 Repair 6 | . . . 4 . . . 1 1 . Recycling Unit Hacks 5 | . 1 . 2 . . . 2 . . Process 2 | . . . 1 . . . 1 . . Retrieve Matter 3 | . 1 . 1 . . . 1 . . Scanalyzer 14 | . . . 7 . . . 7 . . Insert Component 8 | . . . 4 . . . 4 . . Analyze 6 | . . . 3 . . . 3 . . Garrison Access Hacks . | . . . . . . . . . . Unauthorized Hacks 22 | . 7 . 13 . . . 1 . 1 Terminals 20 | . 6 . 13 . . . . . 1 Track 1 | . 1 . . . . . . . . Assimilate 7 | . 2 . 4 . . . . . 1 Botnet 12 | . 3 . 9 . . . . . . Fabricators . | . . . . . . . . . . Repair Stations . | . . . . . . . . . . Recycling Units 1 | . 1 . . . . . . . . Mask 1 | . 1 . . . . . . . . Scanalyzers . | . . . . . . . . . . Garrison Access 1 | . . . . . . . 1 . . Reprogram 1 | . . . . . . . 1 . . Data Cores Recovered 2 | . 1 . . . . . 1 . . Used . | . . . . . . . . . . Hacking Detections 43 | . 6 1 14 . . . 11 3 8 Full Trace Events 2 | . . . . . . . 1 1 . Feedback Events . | . . . . . . . . . . Feedback Blocked . | . . . . . . . . . . Robot Schematics Acquired . | . . . . . . . . . . Robots Built . | . . . . . . . . . . Matter . | . . . . . . . . . . Time . | . . . . . . . . . . Total Robot Build Rating . | . . . . . . . . . . Part Schematics Acquired 7 | . 1 . 3 . . . 3 . . Parts Built . | . . . . . . . . . . Matter . | . . . . . . . . . . Time . | . . . . . . . . . . Total Part Build Rating . | . . . . . . . . . . Parts Repaired 6 | . . . 4 . . . 1 1 . Time 186 | . . . 110 . . . 38 38 . Parts Recycled . | . . . . . . . . . . Recycled Matter 537 | . . . 156 . . . 381 . . Retrieved Matter 383 | . . . 156 . . . 227 . . Retrieved Components . | . . . . . . . . . . Parts Scanalyzed 6 | . . . 3 . . . 3 . . Part Schematics Acquired 6 | . . . 3 . . . 3 . . Parts Damaged . | . . . . . . . . . . Bothacking | -11 -10 -10 -9 -9 -9 -8 -8 -7 -7 ------------ Run | Scr Mat Min Mat Min Exi Min Mat Fac Sto Used RIF Installer . | . . . . . . . . . . Robots Hacked . | . . . . . . . . . . Non-combat . | . . . . . . . . . . Combat . | . . . . . . . . . . Robot Hacks Applied . | . . . . . . . . . . Relay Couplers Released 3 | . . . . . . . . 3 . Machine Destruction 3 | . . . . . . . . 3 . Robots Rewired 5 | . . . . . 5 . . . . Allies Hacked . | . . . . . . . . . . Hacks Repelled . | . . . . . . . . . . Allies | -11 -10 -10 -9 -9 -9 -8 -8 -7 -7 -------- Run | Scr Mat Min Mat Min Exi Min Mat Fac Sto Total Allies 11 | . 1 5 . . 5 . . . . Largest Group 5 | . 1 5 2 . 5 5 3 . . Highest-Rated Group 91 | . 10 91 46 . 66 66 37 . . Highest-Rated Ally 31 | . 10 31 26 . 21 21 21 . . Total Orders 2 | . . . . . 2 . . . . STAY 1 | . . . . . 1 . . . . FOLLOW 1 | . . . . . 1 . . . . Ally Attacks 83 | . . 29 . . . 33 21 . . Total Damage 983 | . . 412 . . . 366 205 . . Kills 18 | . . 6 . . . 9 3 . . Allies Corrupted . | . . . . . . . . . . Allies Melted . | . . . . . . . . . . Intel | -11 -10 -10 -9 -9 -9 -8 -8 -7 -7 ------- Run | Scr Mat Min Mat Min Exi Min Mat Fac Sto Robot Analysis Total . | . . . . . . . . . . Derelict Logs Recovered 2 | . . 1 . 1 . . . . . Drone Launches . | . . . . . . . . . . Drone Recoveries . | . . . . . . . . . . Exploration | -11 -10 -10 -9 -9 -9 -8 -8 -7 -7 ------------- Run | Scr Mat Min Mat Min Exi Min Mat Fac Sto Turns Passed 13614 | 335 1934 1508 1940 426 1179 1604 3246 810 632 Spaces Moved 6053 | 137 914 794 847 205 554 767 1252 265 318 Core 12 | 12 . . . . . . . . . Treads 5912 | 125 914 794 847 205 554 767 1252 265 189 Legs . | . . . . . . . . . . Wheels . | . . . . . . . . . . Hover . | . . . . . . . . . . Flight 129 | . . . . . . . . . 129 Fastest Speed 29 | 50 160 180 180 200 200 200 192 175 29 Average Speed 190 | 156 179 180 194 200 200 200 210 188 131 Slowest Speed 280 | 200 180 180 200 200 200 200 220 280 190 Overloaded Moves . | . . . . . . . . . . Propulsion Burnouts . | . . . . . . . . . . Robots Hopped 1 | . . . . . . . . . 1 Cave-ins Triggered . | . . . . . . . . . . Exploration Rate (%) 70 | 6 99 100 77 62 93 99 99 9 59 Regions Visited 9 Branch Regions 5 Pre-discovered Areas 3 | . . 2 . . 1 . . . . Known Exits Taken 1 | . . . . . . . . 1 . Unknown Exits Taken 8 | 1 1 1 1 1 1 1 1 . . Scrap Searched 4 | . . 1 . 1 . 2 . . . Spaces Dug 14 | . 7 6 . . . . 1 . . Terrain Destroyed 736 | . 27 86 340 44 10 49 57 117 6 Melee . | . . . . . . . . . . Projectile 31 | . . . . . . . 21 4 6 AOE 705 | . 27 86 340 44 10 49 36 113 . Terrain Rammed . | . . . . . . . . . . Walls Destroyed . | . . . . . . . . . . Machines Disabled . | . . . . . . . . . . Actions | -11 -10 -10 -9 -9 -9 -8 -8 -7 -7 --------- Run | Scr Mat Min Mat Min Exi Min Mat Fac Sto Total 7424 | 187 1088 839 1066 210 626 819 1648 447 494 Wait 531 | . 57 16 96 . 2 36 177 57 90 Move 6042 | 136 913 793 846 204 553 766 1251 264 316 Hop 1 | . . . . . . . . . 1 Pick Up 115 | 8 25 4 28 . 3 1 26 11 9 Fast Attach 33 | 6 1 . 9 . . . 7 6 4 Attach 31 | 1 1 2 4 . . . 7 10 6 Detach 3 | . . . 1 . . . . 1 1 Swap 52 | . 7 1 5 . 1 1 18 7 12 Drop 125 | 1 15 2 24 . 4 1 41 9 28 Fire 367 | 33 65 15 42 6 2 6 99 78 21 Melee 10 | . . 4 . . . . . . 6 Ram . | . . . . . . . . . . Kick . | . . . . . . . . . . Crush 53 | 2 4 2 11 . . 8 22 4 . Escape Stasis . | . . . . . . . . . . Rewire 61 | . . . . . 61 . . . . Trap . | . . . . . . . . . . Miscellaneous . | . . . . . . . . . . Route ------- -11/Scrapyard -10/Materials (discovered 4 exits: *Mat x3 / *Min) -10/Mines (discovered 2 exits: *Mat x2) -9/Materials (discovered 3 exits: *Mat / [*Min x2]) -9/Mines (discovered 2 exits: *Mat / *Exi) -9/Exiles (discovered 2 exits: [*Min x2]) -8/Mines (discovered 2 exits: *Mat x2) -8/Materials (discovered 3 exits: *Fac x3) -7/Factory -7/Storage (discovered 1 exit: Fac) History --------- Turn | Location | Event 17 | -11/Scrapyard | Discovered new exit (range 16) 336 | -11/Scrapyard | Entered Materials 344 | -10/Materials | Build established: Mutant 894 | -10/Materials | Discovered new exit (range 16) 940 | -10/Materials | Build established: Hauler-Mutant 1315 | -10/Materials | Discovered new exit (range 15) 1481 | -10/Materials | Discovered new exit (range 5) 1870 | -10/Materials | Discovered new exit (range 15) 2270 | -10/Materials | Entered Mines 2294 | -10/Mines | Learned location of Mines (-9) 2732 | -10/Mines | Assisted by bots powering up and referring to "LRC-V3" 3269 | -10/Mines | Assembled infested the area 3274 | -10/Mines | Assisted by a Guerilla fighting off Assembled 3308 | -10/Mines | Core integrity fell below 50% 3350 | -10/Mines | Discovered new exit (range 4) 3353 | -10/Mines | Learned location of Storage (-7) 3383 | -10/Mines | Discovered new exit (range 3) 3778 | -10/Mines | Entered Materials 3778 | -9/Materials | Accompanied by 2 allies 3778 | -9/Materials | Evolved 2 slots: Utility x2 3783 | -9/Materials | Led the pair of lost Derelicts to an unsafe place 4238 | -9/Materials | Discovered new exit (range 7) 4390 | -9/Materials | Discovered new exit (range 10) 5085 | -9/Materials | Discovered new exit (range 4) 5396 | -9/Materials | Repaired Lgt. Armor Plating 5564 | -9/Materials | Repaired Lgt. Armor Plating 5597 | -9/Materials | Repaired Mni. Grenade Launcher 5625 | -9/Materials | Repaired Lgt. Treads 5718 | -9/Materials | Entered Mines 5936 | -9/Mines | Discovered new exit (range 8) 6136 | -9/Mines | Deemed a non-threat by the Exiles lab entrance 6136 | -9/Mines | Discovered new exit (range 5) 6144 | -9/Mines | Entered Exiles 6144 | -9/Exiles | Found Exiles lab destroyed 6178 | -9/Exiles | Discovered new exit (range 15) 7197 | -9/Exiles | Learned location of Zion (-7) 7299 | -9/Exiles | Discovered new exit (range 14) 7323 | -9/Exiles | Entered Mines 7323 | -8/Mines | Accompanied by 5 allies 7395 | -8/Mines | Discovered new exit (range 7) 8389 | -8/Mines | Discovered new exit (range 3) 8927 | -8/Mines | Entered Materials 8927 | -8/Materials | Accompanied by 3 allies 8927 | -8/Materials | Evolved 2 slots: Weapon x2 9551 | -8/Materials | Build established: Hauler-Tank 9943 | -8/Materials | Repaired Flak Cannon 10646 | -8/Materials | Garrison activated, responded to threat 10957 | -8/Materials | Discovered new exit (range 16) 11579 | -8/Materials | Discovered new exit (range 8) 12118 | -8/Materials | Discovered new exit (range 15) 12173 | -8/Materials | Entered Factory 12173 | -7/Factory | Evolved 2 slots: Propulsion x2 12174 | -7/Factory | Identified exit to Storage 12394 | -7/Factory | Garrison activated, responded to threat 12475 | -7/Factory | Destroyed 7 combat bots 12712 | -7/Factory | Repaired Hrd. Medium Armor Plating 12751 | -7/Factory | Garrison activated, responded to threat 12807 | -7/Factory | Core integrity fell below 50% 12889 | -7/Factory | Core integrity fell below 20% 12916 | -7/Factory | Destroyed 7 combat bots 12923 | -7/Factory | Lost 6 parts (2n1u3w) 12973 | -7/Factory | First assault squad dispatched 12983 | -7/Factory | Entered Storage 13022 | -7/Storage | Identified exit to Factory 13615 | -7/Storage | Destroyed by S-27 Virus with Autogun Last Messages --------------- 13521_ Destroyed Com. Wheel. 13521_ Destroyed Lgt. Ion Engine. 13521_ Destroyed Tractor Beam. 13521_ Destroyed Com. Wheel. 13524_ R-06 Scavenger destroyed. 13527_ Acquired 92 matter. 13530_ K-01 Serf collects debris. 13537_ Acquired 73 matter. 13552_ Acquired Cesium-ion Thruster. 13566_ Shock Rifle destroyed. 13568_ Connecting with Terminal... 13574_ C-30 ARC bursts open, deploying its payload. 13579_ K-01 Serf cleans the Terminal. 13587_ Penetrated by Slug. 13587_ Pulse Rifle destroyed. 13589_ System corrupted: Component data lost. 13598_ Connecting with Door Terminal... >>Open Sealed Heavy Doors opened. 13611_ S-27 Virus destroyed. Map ----- +----------------------------------------------------+ | | | | | | | | | | | | | | | | | | | | | | | | | | | | | | | | | | | | | | | | | ????????????????????????????????????????????? | | ????????????????????????????????????????????? | | ?????????????????########???????????????????? | | ????????????????##T#!!!!#???????????????????? | | ????????????????# =s[ #???????????????????? | | ????????????????# #@!!!#???????????????????? | | ????????????????# ######???????????????????? | | ???????????"######+#????????????????????????? | | ???????????" #????????????????????????? | | ???????????" #????????????????????????? | | ???????????"#T### #????????????????????????? | | ??????########### #????????????????????????? | | ??????# + #????????????????????????? | | ????????"""" # ???????????????????? | | ???????????" # ??????????????? | | ???????????" #+###/#########?????????????? | | ???????????" #???? ????????????????????? | | ???????????" #????? ???????????######## | | ??????# """" #???? ? #??????????#!*==]/ | | ??????# #???? #??????????#!*=*== | | ??????######+####???? ? #??????????#/=!=! | | ???????????# #??????? ?? #??????????# ! | | ???????????# #???????%"???#??????????# ] | | ???????????# #???????" ??????????????# ! | | ???????????# #???????/#??????????????# ! | | ???????????# #??????# #????????####### | | ???????????# #??????# #???????##=!! ## | | ???????????# #??????# #???????# ! #####+### | | ???????????# #??????# #???????## ! # | | ???????????# ######## ########## / % | +----------------------------------------------------+ Best States ------------- Heat Dissipation 34 Energy Generation 14 Energy Capacity 280 Matter Stores 450 Matter Capacity 450 Sight Range 16 Terrain Scan Density 10 Additional Mass Support 15 Armor Coverage 300 Resistance: EM 15 Evasion (%) 64 Recoil Reduction 4 Item Schematics ----------------- Hcp. Storage Unit | -10/Materials | Hacked Lgt. Assault Rifle | -9/Materials | Scanalyzed Beam Cannon | -9/Materials | Scanalyzed Datajack | -9/Materials | Scanalyzed Lgt. Armor Plating | -8/Materials | Scanalyzed Med. Armor Plating | -8/Materials | Scanalyzed Assault Cannon | -8/Materials | Scanalyzed Robot Schematics ------------------ None Fabricated ------------ Nothing Alien Tech Used ----------------- None Achievements -------------- None Challenges ------------ None Game ------ Seed AssemblyTitaniumCarapace Manual? 0 Play Time 01:51:20 Cumulative 152.9 hours Start 2022.02.28 @ 19:18:39 End 2022.02.28 @ 23:05:50 Sessions 1 Manual Loads 0 Difficulty Rogue Special Mode None Game No. 111 Rogue 111 Adventurer 0 Explorer 0 Win Type - Total 0 Types 0/0/0/0/0/0/0/0/0 Lore% 47 Gallery% 58 Achievement% 37 Wizard Run 0 Options --------- ASCII 0 Keyboard 0 Movement Numpad Keybinds 0 Fullscreen 1 Font 18/SmallcapsGlow Map View 76x50 Tactical HUD 1 Map Filters NONE Filters NONE Steam 1 RUN: 47cb7fb5-c07b-432e-a2c7-2893940f6ded